[Event "Titled Tuesday Blitz January 04 2022"]
[White "Nogerbek, Kazybek"]
[Black "Grinev, Valeriy"]
[WhiteFideId "13710427"]
[BlackFideId "14117517"]
[WhiteElo "2478"]
[BlackElo "2345"]
[Result "1/2-1/2"]
[Round "05"]
[TimeControl "180+1"]
[Date "2022.01.04"]
[WhiteClock "0:00:02"]
[BlackClock "0:00:13"]

1. c4 {[%clk 0:03:00]}  c5 {[%clk 0:02:58]} 2. Nc3 {[%clk 0:02:53]}  Nc6 {[%clk 0:02:58]} 3. g3 {[%clk 0:02:51]}  g6 {[%clk 0:02:58]} 4. Bg2 {[%clk 0:02:51]}  Bg7 {[%clk 0:02:59]} 5. Nh3 {[%clk 0:02:50]}  e5 {[%clk 0:02:53]} 6. O-O {[%clk 0:02:50]}  d6 {[%clk 0:02:53]} 7. d3 {[%clk 0:02:50]}  Nge7 {[%clk 0:02:52]} 8. a3 {[%clk 0:02:40]}  a5 {[%clk 0:02:50]} 9. f4 {[%clk 0:02:38]}  O-O {[%clk 0:02:48]} 10. fxe5 {[%clk 0:02:28]}  dxe5 {[%clk 0:02:46]} 11. Kh1 {[%clk 0:02:24]}  h6 {[%clk 0:02:27]} 12. Be3 {[%clk 0:02:19]}  b6 {[%clk 0:02:25]} 13. Bg1 {[%clk 0:02:14]}  Be6 {[%clk 0:02:20]} 14. Nf2 {[%clk 0:01:56]}  f5 {[%clk 0:02:18]} 15. e3 {[%clk 0:01:52]}  Qd7 {[%clk 0:02:09]} 16. Qe2 {[%clk 0:01:36]}  Rad8 {[%clk 0:02:07]} 17. Rae1 {[%clk 0:01:23]}  Kh7 {[%clk 0:01:52]} 18. Na4 {[%clk 0:01:08]}  Qc7 {[%clk 0:01:47]} 19. Nc3 {[%clk 0:01:05]}  Rd7 {[%clk 0:01:40]} 20. Rd1 {[%clk 0:00:57]}  Rfd8 {[%clk 0:01:37]} 21. Nh3 {[%clk 0:00:56]}  Qc8 {[%clk 0:01:17]} 22. Nf2 {[%clk 0:00:53]}  Na7 {[%clk 0:01:16]} 23. e4 {[%clk 0:00:49]}  Nac6 {[%clk 0:01:13]} 24. Nd5 {[%clk 0:00:46]}  Nxd5 {[%clk 0:01:11]} 25. cxd5 {[%clk 0:00:40]}  Nd4 {[%clk 0:01:12]} 26. Qd2 {[%clk 0:00:38]}  Bg8 {[%clk 0:01:12]} 27. Nh3 {[%clk 0:00:33]}  Rf8 {[%clk 0:01:11]} 28. Bxd4 {[%clk 0:00:32]}  cxd4 {[%clk 0:01:11]} 29. Rc1 {[%clk 0:00:27]}  Rc7 {[%clk 0:01:11]} 30. Rxc7 {[%clk 0:00:25]}  Qxc7 {[%clk 0:01:12]} 31. Rc1 {[%clk 0:00:19]}  Qd7 {[%clk 0:01:10]} 32. Nf2 {[%clk 0:00:18]}  Rc8 {[%clk 0:01:08]} 33. Rf1 {[%clk 0:00:15]}  Qc7 {[%clk 0:01:04]} 34. exf5 {[%clk 0:00:13]}  gxf5 {[%clk 0:01:03]} 35. Qd1 {[%clk 0:00:14]}  Qd7 {[%clk 0:00:57]} 36. Qf3 {[%clk 0:00:12]}  Rd8 {[%clk 0:00:57]} 37. Nh3 {[%clk 0:00:11]}  Bxd5 {[%clk 0:00:49]} 38. Qxd5 {[%clk 0:00:10]}  Qxd5 {[%clk 0:00:50]} 39. Bxd5 {[%clk 0:00:11]}  Rxd5 {[%clk 0:00:51]} 40. Rxf5 {[%clk 0:00:11]}  Rc5 {[%clk 0:00:51]} 41. Kg2 {[%clk 0:00:08]}  a4 {[%clk 0:00:45]} 42. Rf2 {[%clk 0:00:06]}  e4 {[%clk 0:00:44]} 43. dxe4 {[%clk 0:00:04]}  d3 {[%clk 0:00:45]} 44. Nf4 {[%clk 0:00:03]}  Rb5 {[%clk 0:00:40]} 45. Nxd3 {[%clk 0:00:03]}  Rb3 {[%clk 0:00:41]} 46. Rd2 {[%clk 0:00:03]}  Bd4 {[%clk 0:00:40]} 47. Kf3 {[%clk 0:00:02]}  Kg7 {[%clk 0:00:39]} 48. Kf4 {[%clk 0:00:02]}  Kf6 {[%clk 0:00:38]} 49. e5+ {[%clk 0:00:02]}  Ke6 {[%clk 0:00:38]} 50. Ke4 {[%clk 0:00:03]}  Bg1 {[%clk 0:00:33]} 51. Nf4+ {[%clk 0:00:03]}  Ke7 {[%clk 0:00:32]} 52. Re2 {[%clk 0:00:03]}  Bc5 {[%clk 0:00:30]} 53. Nd5+ {[%clk 0:00:04]}  Ke6 {[%clk 0:00:30]} 54. Nf4+ {[%clk 0:00:05]}  Ke7 {[%clk 0:00:30]} 55. Kf5 {[%clk 0:00:06]}  Rf3 {[%clk 0:00:29]} 56. Ke4 {[%clk 0:00:05]}  Rf1 {[%clk 0:00:29]} 57. Rd2 {[%clk 0:00:04]}  Rb1 {[%clk 0:00:28]} 58. Kf5 {[%clk 0:00:04]}  Be3 {[%clk 0:00:28]} 59. Ng6+ {[%clk 0:00:04]}  Ke8 {[%clk 0:00:28]} 60. Re2 {[%clk 0:00:03]}  Bd4 {[%clk 0:00:28]} 61. Rd2 {[%clk 0:00:03]}  Bxb2 {[%clk 0:00:27]} 62. Rd3 {[%clk 0:00:03]}  Rf1+ {[%clk 0:00:26]} 63. Nf4 {[%clk 0:00:03]}  b5 {[%clk 0:00:25]} 64. Rd5 {[%clk 0:00:01]}  b4 {[%clk 0:00:24]} 65. axb4 {[%clk 0:00:02]}  a3 {[%clk 0:00:25]} 66. Ra5 {[%clk 0:00:01]}  Rf3 {[%clk 0:00:24]} 67. Ra8+ {[%clk 0:00:01]}  Ke7 {[%clk 0:00:23]} 68. Ra7+ {[%clk 0:00:02]}  Kd8 {[%clk 0:00:23]} 69. Ke4 {[%clk 0:00:03]}  Rb3 {[%clk 0:00:22]} 70. e6 {[%clk 0:00:03]}  Rxb4+ {[%clk 0:00:22]} 71. Kd5 {[%clk 0:00:04]}  Rd4+ {[%clk 0:00:21]} 72. Kc5 {[%clk 0:00:04]}  Re4 {[%clk 0:00:21]} 73. Kd6 {[%clk 0:00:04]}  Rd4+ {[%clk 0:00:19]} 74. Kc5 {[%clk 0:00:04]}  Re4 {[%clk 0:00:19]} 75. Kc6 {[%clk 0:00:04]}  Be5 {[%clk 0:00:16]} 76. Nd5 {[%clk 0:00:04]}  Rc4+ {[%clk 0:00:15]} 77. Kb5 {[%clk 0:00:04]}  Rc8 {[%clk 0:00:14]} 78. Rxa3 {[%clk 0:00:04]}  Bd6 {[%clk 0:00:14]} 79. Rd3 {[%clk 0:00:03]}  Ke8 {[%clk 0:00:14]} 80. Rc3 {[%clk 0:00:01]}  Rxc3 {[%clk 0:00:13]} 81. Nxc3 {[%clk 0:00:02]}  Ke7 {[%clk 0:00:14]} 82. Ne4 {[%clk 0:00:03]}  Be5 {[%clk 0:00:14]} 83. Nc5 {[%clk 0:00:03]}  Kd6 {[%clk 0:00:15]} 84. Kc4 {[%clk 0:00:03]}  Bg7 {[%clk 0:00:13]} 85. g4 {[%clk 0:00:03]}  Bf8 {[%clk 0:00:13]} 86. h3 {[%clk 0:00:04]}  Be7 {[%clk 0:00:13]} 87. Kd4 {[%clk 0:00:04]}  Bf6+ {[%clk 0:00:13]} 88. Kc4 {[%clk 0:00:04]}  Be7 {[%clk 0:00:14]} 89. Kb5 {[%clk 0:00:04]}  Kd5 {[%clk 0:00:13]} 90. Nd3 {[%clk 0:00:02]}  Kxe6 {[%clk 0:00:13]} 91. Kc4 {[%clk 0:00:03]}  Kf6 {[%clk 0:00:13]} 92. Kd4 {[%clk 0:00:02]}  Kg5 {[%clk 0:00:13]} 93. Ne5 {[%clk 0:00:01]}  Bf6 {[%clk 0:00:13]} 94. Ke4 {[%clk 0:00:01]}  Bxe5 {[%clk 0:00:11]} 95. Kxe5 {[%clk 0:00:02]}  Kh4 {[%clk 0:00:12]} 96. Kf5 {[%clk 0:00:02]}  Kxh3 {[%clk 0:00:12]} 97. g5 {[%clk 0:00:02]}  hxg5 {[%clk 0:00:13]} 98. Kxg5 {[%clk 0:00:02]} 1/2-1/2


[Site "https://www.chess.com"]

[Event "Titled Tuesday Blitz January 04 2022"]
[White "Onyshchuk, Volodymyr"]
[Black "Bellissimo, Joseph F."]
[WhiteFideId "14114038"]
[BlackFideId "2609843"]
[WhiteElo "2642"]
[BlackElo "2061"]
[Result "1-0"]
[Round "05"]
[TimeControl "180+1"]
[Date "2022.01.04"]
[WhiteClock "0:01:07"]
[BlackClock "0:00:13"]

1. g3 {[%clk 0:03:00]}  Nf6 {[%clk 0:02:59]} 2. Bg2 {[%clk 0:03:01]}  d5 {[%clk 0:02:59]} 3. b3 {[%clk 0:03:01]}  b6 {[%clk 0:02:55]} 4. Bb2 {[%clk 0:03:01]}  Bb7 {[%clk 0:02:55]} 5. d3 {[%clk 0:03:01]}  e6 {[%clk 0:02:55]} 6. Nd2 {[%clk 0:03:01]}  c5 {[%clk 0:02:54]} 7. e3 {[%clk 0:03:00]}  Nbd7 {[%clk 0:02:55]} 8. Ne2 {[%clk 0:03:01]}  Bd6 {[%clk 0:02:56]} 9. O-O {[%clk 0:03:00]}  O-O {[%clk 0:02:55]} 10. h3 {[%clk 0:03:00]}  Qc7 {[%clk 0:02:55]} 11. f4 {[%clk 0:02:57]}  e5 {[%clk 0:02:52]} 12. Qe1 {[%clk 0:02:47]}  Rfe8 {[%clk 0:02:45]} 13. Qf2 {[%clk 0:02:47]}  e4 {[%clk 0:02:35]} 14. d4 {[%clk 0:02:41]}  c4 {[%clk 0:02:25]} 15. c3 {[%clk 0:02:30]}  b5 {[%clk 0:02:24]} 16. g4 {[%clk 0:02:28]}  Nf8 {[%clk 0:02:23]} 17. Ng3 {[%clk 0:02:25]}  Rac8 {[%clk 0:02:15]} 18. g5 {[%clk 0:02:21]}  N6d7 {[%clk 0:02:15]} 19. Nf5 {[%clk 0:02:15]}  Ne6 {[%clk 0:02:09]} 20. Nxd6 {[%clk 0:02:10]}  Qxd6 {[%clk 0:02:10]} 21. h4 {[%clk 0:02:09]}  b4 {[%clk 0:02:09]} 22. bxc4 {[%clk 0:02:05]}  dxc4 {[%clk 0:01:53]} 23. f5 {[%clk 0:02:00]}  Nef8 {[%clk 0:01:50]} 24. Rac1 {[%clk 0:01:58]}  b3 {[%clk 0:01:44]} 25. axb3 {[%clk 0:01:56]}  cxb3 {[%clk 0:01:45]} 26. c4 {[%clk 0:01:55]}  a5 {[%clk 0:01:41]} 27. Nxb3 {[%clk 0:01:49]}  Qb4 {[%clk 0:01:41]} 28. Qc2 {[%clk 0:01:47]}  Ba6 {[%clk 0:01:40]} 29. Nd2 {[%clk 0:01:46]}  Nb6 {[%clk 0:01:36]} 30. Bc3 {[%clk 0:01:41]}  Qe7 {[%clk 0:01:31]} 31. Qxe4 {[%clk 0:01:37]}  Qa3 {[%clk 0:01:23]} 32. Qf4 {[%clk 0:01:27]}  Nxc4 {[%clk 0:01:22]} 33. Nxc4 {[%clk 0:01:25]}  Rxc4 {[%clk 0:01:21]} 34. Bd2 {[%clk 0:01:24]}  Rec8 {[%clk 0:01:12]} 35. Rxc4 {[%clk 0:01:16]}  Bxc4 {[%clk 0:01:11]} 36. Rf2 {[%clk 0:01:15]}  a4 {[%clk 0:01:09]} 37. h5 {[%clk 0:01:14]}  Qd3 {[%clk 0:01:04]} 38. h6 {[%clk 0:01:12]}  a3 {[%clk 0:00:57]} 39. Qe5 {[%clk 0:01:11]}  f6 {[%clk 0:00:54]} 40. Qe7 {[%clk 0:01:08]}  Bf7 {[%clk 0:00:19]} 41. Bd5 {[%clk 0:01:08]}  Qb1+ {[%clk 0:00:18]} 42. Rf1 {[%clk 0:01:08]}  Qxf1+ {[%clk 0:00:16]} 43. Kxf1 {[%clk 0:01:07]}  gxh6 {[%clk 0:00:12]} 44. Qxf7+ {[%clk 0:01:07]}  Kh8 {[%clk 0:00:13]} 45. Qxf6# {[%clk 0:01:07]} 1-0


[Site "https://www.chess.com"]

[Event "Titled Tuesday Blitz January 04 2022"]
[White "Padmini, Rout"]
[Black "Grischuk, Alexander"]
[WhiteFideId "5029295"]
[BlackFideId "4126025"]
[WhiteElo "2181"]
[BlackElo "2762"]
[Result "0-1"]
[Round "05"]
[TimeControl "180+1"]
[Date "2022.01.04"]
[WhiteClock "0:00:08"]
[BlackClock "0:01:23"]

1. Nf3 {[%clk 0:03:00]}  c5 {[%clk 0:02:56]} 2. g3 {[%clk 0:02:58]}  g6 {[%clk 0:02:56]} 3. c3 {[%clk 0:02:51]}  Bg7 {[%clk 0:02:54]} 4. d4 {[%clk 0:02:51]}  b6 {[%clk 0:02:51]} 5. Bg2 {[%clk 0:02:51]}  Bb7 {[%clk 0:02:50]} 6. O-O {[%clk 0:02:51]}  Nf6 {[%clk 0:02:50]} 7. a4 {[%clk 0:02:44]}  O-O {[%clk 0:02:37]} 8. a5 {[%clk 0:02:29]}  d6 {[%clk 0:02:37]} 9. Nbd2 {[%clk 0:02:17]}  Qc8 {[%clk 0:02:33]} 10. axb6 {[%clk 0:02:01]}  axb6 {[%clk 0:02:34]} 11. Rxa8 {[%clk 0:02:01]}  Bxa8 {[%clk 0:02:35]} 12. Qb3 {[%clk 0:01:48]}  Nbd7 {[%clk 0:02:33]} 13. Nc4 {[%clk 0:01:31]}  Qa6 {[%clk 0:02:22]} 14. Na3 {[%clk 0:01:23]}  Bd5 {[%clk 0:02:08]} 15. Qd1 {[%clk 0:01:06]}  b5 {[%clk 0:02:00]} 16. Ne1 {[%clk 0:00:57]}  Bxg2 {[%clk 0:01:53]} 17. Kxg2 {[%clk 0:00:58]}  Rb8 {[%clk 0:01:50]} 18. Nf3 {[%clk 0:00:32]}  b4 {[%clk 0:01:50]} 19. cxb4 {[%clk 0:00:21]}  Rxb4 {[%clk 0:01:51]} 20. Nc2 {[%clk 0:00:20]}  Rb8 {[%clk 0:01:50]} 21. dxc5 {[%clk 0:00:19]}  Nxc5 {[%clk 0:01:47]} 22. Re1 {[%clk 0:00:17]}  Nce4 {[%clk 0:01:42]} 23. Qd3 {[%clk 0:00:15]}  Qa8 {[%clk 0:01:38]} 24. Ne3 {[%clk 0:00:14]}  e6 {[%clk 0:01:33]} 25. Qc2 {[%clk 0:00:11]}  Nd7 {[%clk 0:01:30]} 26. Kg1 {[%clk 0:00:10]}  Ndc5 {[%clk 0:01:28]} 27. Nd2 {[%clk 0:00:09]}  Nxd2 {[%clk 0:01:27]} 28. Bxd2 {[%clk 0:00:09]}  Rxb2 {[%clk 0:01:26]} 29. Qc1 {[%clk 0:00:09]}  Nb3 {[%clk 0:01:24]} 30. Bc3 {[%clk 0:00:08]}  Nxc1 {[%clk 0:01:23]} 0-1


[Site "https://www.chess.com"]

[Event "Titled Tuesday Blitz January 04 2022"]
[White "Poormosavi, Seyed Kian"]
[Black "Safarli, Eltaj"]
[WhiteFideId "12585807"]
[BlackFideId "13402129"]
[WhiteElo "2116"]
[BlackElo "2634"]
[Result "0-1"]
[Round "05"]
[TimeControl "180+1"]
[Date "2022.01.04"]
[WhiteClock "0:00:33"]
[BlackClock "0:00:06"]

1. e4 {[%clk 0:03:00]}  e5 {[%clk 0:02:58]} 2. Nf3 {[%clk 0:02:57]}  Nc6 {[%clk 0:02:57]} 3. c3 {[%clk 0:02:57]}  d5 {[%clk 0:02:51]} 4. Bb5 {[%clk 0:02:57]}  dxe4 {[%clk 0:02:44]} 5. Nxe5 {[%clk 0:02:57]}  Qd5 {[%clk 0:02:44]} 6. Qa4 {[%clk 0:02:57]}  Ne7 {[%clk 0:02:44]} 7. f4 {[%clk 0:02:54]}  exf3 {[%clk 0:02:33]} 8. Nxf3 {[%clk 0:02:54]}  a6 {[%clk 0:02:28]} 9. Be2 {[%clk 0:02:54]}  Bd7 {[%clk 0:02:15]} 10. Qb3 {[%clk 0:02:43]}  O-O-O {[%clk 0:02:09]} 11. O-O {[%clk 0:02:41]}  Be6 {[%clk 0:01:50]} 12. Qxd5 {[%clk 0:02:40]}  Bxd5 {[%clk 0:01:49]} 13. d4 {[%clk 0:02:40]}  Ng6 {[%clk 0:01:48]} 14. Bd3 {[%clk 0:02:23]}  Bd6 {[%clk 0:01:45]} 15. Ng5 {[%clk 0:02:11]}  f6 {[%clk 0:01:32]} 16. Ne4 {[%clk 0:02:02]}  Rhe8 {[%clk 0:01:25]} 17. Nxd6+ {[%clk 0:01:58]}  Rxd6 {[%clk 0:01:26]} 18. Nd2 {[%clk 0:01:43]}  Rd7 {[%clk 0:01:14]} 19. Nf3 {[%clk 0:01:32]}  Rde7 {[%clk 0:01:11]} 20. Bd2 {[%clk 0:01:32]}  Be4 {[%clk 0:01:08]} 21. Bxe4 {[%clk 0:01:26]}  Rxe4 {[%clk 0:01:09]} 22. Rae1 {[%clk 0:01:26]}  Rxe1 {[%clk 0:00:55]} 23. Rxe1 {[%clk 0:01:27]}  Rxe1+ {[%clk 0:00:55]} 24. Nxe1 {[%clk 0:01:27]}  Kd7 {[%clk 0:00:56]} 25. Kf2 {[%clk 0:01:26]}  Nge7 {[%clk 0:00:52]} 26. Nd3 {[%clk 0:01:26]}  b6 {[%clk 0:00:53]} 27. g4 {[%clk 0:01:24]}  Nd8 {[%clk 0:00:47]} 28. h4 {[%clk 0:01:24]}  Ne6 {[%clk 0:00:47]} 29. Kf3 {[%clk 0:01:23]}  Nd5 {[%clk 0:00:43]} 30. Be1 {[%clk 0:01:19]}  b5 {[%clk 0:00:42]} 31. Bd2 {[%clk 0:01:04]}  a5 {[%clk 0:00:37]} 32. Nf2 {[%clk 0:00:53]}  a4 {[%clk 0:00:34]} 33. Ne4 {[%clk 0:00:53]}  Nb6 {[%clk 0:00:27]} 34. Ng3 {[%clk 0:00:48]}  Nc4 {[%clk 0:00:25]} 35. Bc1 {[%clk 0:00:48]}  c5 {[%clk 0:00:25]} 36. Ke4 {[%clk 0:00:43]}  cxd4 {[%clk 0:00:23]} 37. cxd4 {[%clk 0:00:44]}  Nd6+ {[%clk 0:00:24]} 38. Kd3 {[%clk 0:00:44]}  Nc7 {[%clk 0:00:22]} 39. Bf4 {[%clk 0:00:41]}  g6 {[%clk 0:00:14]} 40. Bxd6 {[%clk 0:00:39]}  Kxd6 {[%clk 0:00:14]} 41. Ne4+ {[%clk 0:00:40]}  Ke6 {[%clk 0:00:15]} 42. Nc5+ {[%clk 0:00:38]}  Kd5 {[%clk 0:00:14]} 43. Ne4 {[%clk 0:00:39]}  f5 {[%clk 0:00:13]} 44. gxf5 {[%clk 0:00:38]}  gxf5 {[%clk 0:00:14]} 45. Nf6+ {[%clk 0:00:39]}  Ke6 {[%clk 0:00:15]} 46. Nxh7 {[%clk 0:00:39]}  Nd5 {[%clk 0:00:15]} 47. Ng5+ {[%clk 0:00:39]}  Kf6 {[%clk 0:00:15]} 48. Nf3 {[%clk 0:00:39]}  Nb4+ {[%clk 0:00:15]} 49. Ke3 {[%clk 0:00:37]}  Nxa2 {[%clk 0:00:15]} 50. d5 {[%clk 0:00:36]}  Nb4 {[%clk 0:00:15]} 51. d6 {[%clk 0:00:36]}  Nc6 {[%clk 0:00:11]} 52. Nd4 {[%clk 0:00:34]}  f4+ {[%clk 0:00:05]} 53. Ke4 {[%clk 0:00:34]}  Nxd4 {[%clk 0:00:05]} 54. Kxd4 {[%clk 0:00:35]}  b4 {[%clk 0:00:05]} 55. h5 {[%clk 0:00:33]}  a3 {[%clk 0:00:06]} 56. bxa3 {[%clk 0:00:33]}  bxa3 {[%clk 0:00:06]} 57. Kc3 {[%clk 0:00:33]}  a2 {[%clk 0:00:05]} 58. Kb2 {[%clk 0:00:33]}  a1=Q+ {[%clk 0:00:05]} 59. Kxa1 {[%clk 0:00:33]}  f3 {[%clk 0:00:06]} 0-1


[Site "https://www.chess.com"]

[Event "Titled Tuesday Blitz January 04 2022"]
[White "Roshka, Yevgeniy"]
[Black "Tsydypov, Zhamsaran"]
[WhiteFideId "14129558"]
[BlackFideId "4108566"]
[WhiteElo "2437"]
[BlackElo "2614"]
[Result "1-0"]
[Round "05"]
[TimeControl "180+1"]
[Date "2022.01.04"]
[WhiteClock "0:01:03"]
[BlackClock "0:01:21"]

1. d4 {[%clk 0:03:00]}  Nf6 {[%clk 0:02:59]} 2. c4 {[%clk 0:03:01]}  c5 {[%clk 0:02:59]} 3. d5 {[%clk 0:03:01]}  b5 {[%clk 0:02:59]} 4. cxb5 {[%clk 0:03:02]}  a6 {[%clk 0:03:00]} 5. f3 {[%clk 0:03:03]}  axb5 {[%clk 0:02:58]} 6. e4 {[%clk 0:03:03]}  Qa5+ {[%clk 0:02:58]} 7. Bd2 {[%clk 0:03:04]}  b4 {[%clk 0:02:59]} 8. Na3 {[%clk 0:03:04]}  d6 {[%clk 0:02:58]} 9. Nc4 {[%clk 0:03:05]}  Qc7 {[%clk 0:02:58]} 10. a3 {[%clk 0:03:05]}  g6 {[%clk 0:02:55]} 11. axb4 {[%clk 0:03:04]}  Rxa1 {[%clk 0:02:55]} 12. Qxa1 {[%clk 0:03:04]}  cxb4 {[%clk 0:02:55]} 13. Bxb4 {[%clk 0:02:47]}  Bh6 {[%clk 0:02:43]} 14. Qa5 {[%clk 0:02:41]}  Qb7 {[%clk 0:02:40]} 15. Bxd6 {[%clk 0:02:40]}  O-O {[%clk 0:02:38]} 16. Ba3 {[%clk 0:02:22]}  Re8 {[%clk 0:02:25]} 17. Bd3 {[%clk 0:02:19]}  Qb3 {[%clk 0:02:15]} 18. Qc3 {[%clk 0:02:10]}  Qa2 {[%clk 0:02:12]} 19. Kf2 {[%clk 0:01:38]}  Bg7 {[%clk 0:02:08]} 20. Qc2 {[%clk 0:01:31]}  Ba6 {[%clk 0:01:50]} 21. Ne2 {[%clk 0:01:31]}  Rc8 {[%clk 0:01:50]} 22. Nc3 {[%clk 0:01:32]}  Rxc4 {[%clk 0:01:49]} 23. Nxa2 {[%clk 0:01:32]}  Rxc2+ {[%clk 0:01:46]} 24. Bxc2 {[%clk 0:01:33]}  e6 {[%clk 0:01:46]} 25. dxe6 {[%clk 0:01:30]}  fxe6 {[%clk 0:01:46]} 26. Nb4 {[%clk 0:01:27]}  Bb7 {[%clk 0:01:41]} 27. Bb3 {[%clk 0:01:27]}  Kf7 {[%clk 0:01:41]} 28. Rc1 {[%clk 0:01:26]}  Ne8 {[%clk 0:01:41]} 29. Nd3 {[%clk 0:01:23]}  Nc6 {[%clk 0:01:36]} 30. Bxe6+ {[%clk 0:01:22]}  Kxe6 {[%clk 0:01:33]} 31. Nc5+ {[%clk 0:01:22]}  Kf7 {[%clk 0:01:29]} 32. Nxb7 {[%clk 0:01:23]}  Ne5 {[%clk 0:01:29]} 33. Ke2 {[%clk 0:01:21]}  Bh6 {[%clk 0:01:29]} 34. Rc8 {[%clk 0:01:12]}  Nf6 {[%clk 0:01:28]} 35. Rc7+ {[%clk 0:01:09]}  Kg8 {[%clk 0:01:27]} 36. b4 {[%clk 0:01:03]}  Nh5 {[%clk 0:01:22]} 37. g3 {[%clk 0:01:03]}  Nf6 {[%clk 0:01:21]} 38. b5 {[%clk 0:01:03]} 1-0


[Site "https://www.chess.com"]

[Event "Titled Tuesday Blitz January 04 2022"]
[White "Rubinstein_Akiba"]
[Black "Pranav, V"]
[BlackFideId "25060783"]
[WhiteElo "2629"]
[BlackElo "2349"]
[Result "0-1"]
[Round "05"]
[TimeControl "180+1"]
[Date "2022.01.04"]
[WhiteClock "0:00:06"]
[BlackClock "0:00:06"]

1. e4 {[%clk 0:03:00]}  e5 {[%clk 0:02:58]} 2. Nf3 {[%clk 0:03:00]}  Nc6 {[%clk 0:02:58]} 3. Bb5 {[%clk 0:02:59]}  a6 {[%clk 0:02:58]} 4. Ba4 {[%clk 0:02:59]}  d6 {[%clk 0:02:58]} 5. Bxc6+ {[%clk 0:02:58]}  bxc6 {[%clk 0:02:58]} 6. d4 {[%clk 0:02:58]}  exd4 {[%clk 0:02:58]} 7. Qxd4 {[%clk 0:02:59]}  Ne7 {[%clk 0:02:55]} 8. Nc3 {[%clk 0:02:58]}  Ng6 {[%clk 0:02:55]} 9. Be3 {[%clk 0:02:55]}  c5 {[%clk 0:02:52]} 10. Qd3 {[%clk 0:02:55]}  Be7 {[%clk 0:02:51]} 11. h4 {[%clk 0:02:45]}  h5 {[%clk 0:02:46]} 12. g3 {[%clk 0:02:25]}  Bg4 {[%clk 0:02:45]} 13. Nh2 {[%clk 0:02:25]}  Ne5 {[%clk 0:02:43]} 14. Qf1 {[%clk 0:02:25]}  Nf3+ {[%clk 0:02:42]} 15. Nxf3 {[%clk 0:02:24]}  Bxf3 {[%clk 0:02:43]} 16. Rg1 {[%clk 0:02:24]}  Bf6 {[%clk 0:02:39]} 17. Qd3 {[%clk 0:02:24]}  O-O {[%clk 0:02:24]} 18. Bg5 {[%clk 0:02:18]}  Bg4 {[%clk 0:02:04]} 19. f3 {[%clk 0:02:14]}  Be6 {[%clk 0:02:02]} 20. Bxf6 {[%clk 0:02:09]}  Qxf6 {[%clk 0:02:03]} 21. O-O-O {[%clk 0:02:10]}  Rab8 {[%clk 0:01:55]} 22. Kb1 {[%clk 0:02:10]}  Rb4 {[%clk 0:01:52]} 23. Ka1 {[%clk 0:02:10]}  Rfb8 {[%clk 0:01:51]} 24. Rb1 {[%clk 0:02:10]}  a5 {[%clk 0:01:50]} 25. a3 {[%clk 0:02:07]}  Rd4 {[%clk 0:01:48]} 26. Qe3 {[%clk 0:02:05]}  Rc4 {[%clk 0:01:43]} 27. g4 {[%clk 0:01:56]}  hxg4 {[%clk 0:01:41]} 28. fxg4 {[%clk 0:01:57]}  Qd4 {[%clk 0:01:34]} 29. Qe1 {[%clk 0:01:50]}  Qe5 {[%clk 0:01:20]} 30. h5 {[%clk 0:01:47]}  f6 {[%clk 0:01:09]} 31. Qe3 {[%clk 0:01:43]}  Qg5 {[%clk 0:01:03]} 32. Qe2 {[%clk 0:01:33]}  Bf7 {[%clk 0:00:57]} 33. Rgf1 {[%clk 0:01:18]}  Qe5 {[%clk 0:00:52]} 34. Rf5 {[%clk 0:01:16]}  Qe6 {[%clk 0:00:51]} 35. Rd5 {[%clk 0:00:50]}  Rd4 {[%clk 0:00:45]} 36. Rd1 {[%clk 0:00:45]}  Rxd1+ {[%clk 0:00:36]} 37. Qxd1 {[%clk 0:00:40]}  Qe8 {[%clk 0:00:30]} 38. Rf5 {[%clk 0:00:33]}  Be6 {[%clk 0:00:27]} 39. Rf4 {[%clk 0:00:33]}  Bf7 {[%clk 0:00:24]} 40. Rf5 {[%clk 0:00:33]}  Qe7 {[%clk 0:00:21]} 41. Qd2 {[%clk 0:00:29]}  c6 {[%clk 0:00:17]} 42. h6 {[%clk 0:00:20]}  Be6 {[%clk 0:00:06]} 43. Rf2 {[%clk 0:00:19]}  g6 {[%clk 0:00:02]} 44. Qf4 {[%clk 0:00:19]}  Rf8 {[%clk 0:00:02]} 45. Rd2 {[%clk 0:00:16]}  g5 {[%clk 0:00:01]} 46. Qg3 {[%clk 0:00:14]}  Kh7 {[%clk 0:00:01]} 47. Rxd6 {[%clk 0:00:11]}  Rd8 {[%clk 0:00:02]} 48. Rxd8 {[%clk 0:00:10]}  Qxd8 {[%clk 0:00:03]} 49. b3 {[%clk 0:00:11]}  Qd4 {[%clk 0:00:03]} 50. Kb2 {[%clk 0:00:11]}  Kxh6 {[%clk 0:00:03]} 51. Qh2+ {[%clk 0:00:11]}  Kg7 {[%clk 0:00:03]} 52. Qc7+ {[%clk 0:00:12]}  Qd7 {[%clk 0:00:04]} 53. Qxa5 {[%clk 0:00:12]}  Bxg4 {[%clk 0:00:04]} 54. Qxc5 {[%clk 0:00:12]}  Bf3 {[%clk 0:00:04]} 55. e5 {[%clk 0:00:13]}  g4 {[%clk 0:00:03]} 56. exf6+ {[%clk 0:00:11]}  Kxf6 {[%clk 0:00:03]} 57. Qe3 {[%clk 0:00:12]}  Qf5 {[%clk 0:00:03]} 58. Qd4+ {[%clk 0:00:12]}  Kg6 {[%clk 0:00:04]} 59. Qd6+ {[%clk 0:00:11]}  Qf6 {[%clk 0:00:04]} 60. Qg3 {[%clk 0:00:12]}  Kf5 {[%clk 0:00:04]} 61. a4 {[%clk 0:00:12]}  Qd4 {[%clk 0:00:03]} 62. a5 {[%clk 0:00:12]}  Qa7 {[%clk 0:00:04]} 63. b4 {[%clk 0:00:10]}  Qd4 {[%clk 0:00:05]} 64. Kb3 {[%clk 0:00:10]}  Bd5+ {[%clk 0:00:05]} 65. Kb2 {[%clk 0:00:07]}  Qxb4+ {[%clk 0:00:05]} 66. Kc1 {[%clk 0:00:07]}  Bf3 {[%clk 0:00:05]} 67. Kd2 {[%clk 0:00:06]}  Qxa5 {[%clk 0:00:05]} 68. Qf2 {[%clk 0:00:06]}  Qd8+ {[%clk 0:00:05]} 69. Kc1 {[%clk 0:00:07]}  Qg5+ {[%clk 0:00:06]} 70. Kb2 {[%clk 0:00:07]}  Qe7 {[%clk 0:00:06]} 71. Qe3 {[%clk 0:00:06]}  Qxe3 {[%clk 0:00:06]} 72. Nd1 {[%clk 0:00:06]}  Bxd1 {[%clk 0:00:06]} 0-1


[Site "https://www.chess.com"]

[Event "Titled Tuesday Blitz January 04 2022"]
[White "Sarana, Alexey"]
[Black "Rozen, Eytan"]
[WhiteFideId "24133795"]
[BlackFideId "2816750"]
[WhiteElo "2665"]
[BlackElo "2115"]
[Result "1-0"]
[Round "05"]
[TimeControl "180+1"]
[Date "2022.01.04"]
[WhiteClock "0:01:46"]
[BlackClock "0:00:14"]

1. d4 {[%clk 0:03:00]}  d5 {[%clk 0:02:24]} 2. c4 {[%clk 0:03:00]}  c6 {[%clk 0:02:22]} 3. Nf3 {[%clk 0:03:00]}  Nf6 {[%clk 0:02:22]} 4. Nc3 {[%clk 0:03:00]}  e6 {[%clk 0:02:21]} 5. Bg5 {[%clk 0:03:00]}  dxc4 {[%clk 0:02:21]} 6. e4 {[%clk 0:03:00]}  h6 {[%clk 0:02:14]} 7. Bxf6 {[%clk 0:03:00]}  Qxf6 {[%clk 0:02:13]} 8. Bxc4 {[%clk 0:03:01]}  a6 {[%clk 0:02:00]} 9. O-O {[%clk 0:02:51]}  b5 {[%clk 0:01:59]} 10. Bd3 {[%clk 0:02:52]}  Bb7 {[%clk 0:01:58]} 11. a4 {[%clk 0:02:48]}  Bb4 {[%clk 0:01:47]} 12. e5 {[%clk 0:02:42]}  Qe7 {[%clk 0:01:44]} 13. Qe2 {[%clk 0:02:31]}  O-O {[%clk 0:01:42]} 14. Qe4 {[%clk 0:02:30]}  g6 {[%clk 0:01:40]} 15. Qf4 {[%clk 0:02:31]}  Kg7 {[%clk 0:01:36]} 16. Ne4 {[%clk 0:02:31]}  Nd7 {[%clk 0:01:36]} 17. h4 {[%clk 0:02:25]}  f5 {[%clk 0:01:28]} 18. exf6+ {[%clk 0:02:07]}  Nxf6 {[%clk 0:01:26]} 19. Ne5 {[%clk 0:02:07]}  Nh5 {[%clk 0:01:12]} 20. Qg4 {[%clk 0:02:05]}  Nf4 {[%clk 0:01:11]} 21. Ng3 {[%clk 0:01:54]}  Rf6 {[%clk 0:00:29]} 22. Bxg6 {[%clk 0:01:50]}  Nxg6 {[%clk 0:00:24]} 23. h5 {[%clk 0:01:51]}  Qe8 {[%clk 0:00:14]} 24. hxg6 {[%clk 0:01:46]} 1-0


[Site "https://www.chess.com"]